bitfinex/quotes_ETHUSD_20250219
["timestamp","ask_amount","ask_price","bid_price","bid_amount"]
[1739938890570,2.47993335,2687.4,2687.2,0.55]
[1739938890735,2.47993335,2687.4,2687.3,0.06506912]
[1739938890936,2.47993335,2687.4,2687.2,0.55]
[1739938891148,2.47993335,2687.4,2687.3,0.06506912]
[1739938891336,2.47993335,2687.4,2687.2,0.55]
[1739938891560,2.47993335,2687.4,2687.3,0.06506912]
[1739938891734,2.47993335,2687.4,2687.2,0.55]
[1739938891932,2.47993335,2687.4,2687.3,0.06506912]
[1739938892143,2.47993335,2687.4,2687.2,0.55]
[1739938892382,2.47993335,2687.7,2687.3,0.06506912]
[1739938892580,2.47993335,2687.7,2687.2,0.78179632]
[1739938892792,2.47993335,2687.7,2687.3,0.06506912]
[1739938893002,2.47993335,2687.7,2687.4,0.55]
[1739938893381,2.47993335,2687.7,2687.5,0.06455181]
[1739938893587,2.47993335,2687.7,2687.5,0.82145181]
[1739938895811,2.47993335,2687.7,2687.6,0.76356268]
[1739938896229,2.47993335,2687.7,2687.6,0.82799319]
[1739938897036,2.57993335,2688.2,2687.7,0.55]
[1739938897201,2.57993335,2688.2,2687.9,0.55]
[1739938897602,2.57993335,2688.2,2688.0,0.06395124]
[1739938899817,2.57993335,2688.2,2688.1,0.55]
[1739938900201,2.57993335,2688.2,2688.1,0.61386503]
[1739938902920,2.57993335,2688.2,2688.1,0.06386503]
[1739938903125,3.63892669,2688.2,2688.1,0.06386503]
[1739938903324,2.83792669,2688.2,2687.8,3.0]
[1739938903521,2.47993335,2687.9,2687.8,3.0]
[1739938903740,2.47993335,2687.9,2687.8,3.7569]
[1739938903913,2.57993335,2688.2,2687.8,3.7569]
[1739938904599,2.47993335,2687.9,2687.8,3.0]
[1739938904798,2.47993335,2687.9,2687.8,3.06362718]
[1739938906044,3.30233335,2687.9,2687.8,3.06362718]
[1739938906696,2.47993335,2687.9,2687.8,3.06362718]
[1739938906897,2.47993335,2687.9,2687.8,0.06362718]
[1739938907145,2.47993335,2687.9,2687.6,0.74266103]
[1739938907296,2.47993335,2687.9,2687.7,0.06374845]
[1739938910528,0.85063517,2687.8,2687.7,0.06374845]
[1739938910699,0.85063517,2687.8,2686.7,0.7532]
[1739938910902,0.85063517,2687.8,2686.2,5.36]
[1739938910903,2.47993335,2686.9,2686.8,0.06224808]
[1739938911136,2.47993335,2686.9,2686.3,0.7569]
[1739938911331,2.47993335,2686.9,2686.4,0.0625933]
[1739938911579,0.02623517,2686.8,2686.6,0.75068363]
[1739938911798,2.47993335,2686.9,2686.7,0.06233438]
[1739938912864,0.02623517,2686.8,2686.7,0.06233438]
[1739938913234,3.29666852,2686.8,2686.7,0.06233438]
[1739938913781,0.7905,2686.7,2686.2,0.73270184]
[1739938914073,2.47993335,2686.3,2686.2,0.73270184]
[1739938915135,0.02623517,2687.5,2686.3,0.7569]
[1739938915136,2.47993335,2686.6,2686.3,0.7569]
[1739938917091,2.47993335,2686.6,2686.2,3.73270184]
[1739938918193,3.23163335,2686.6,2686.2,3.73270184]
[1739938918351,3.23163335,2686.6,2686.3,0.06338666]
[1739938918575,3.23163335,2686.6,2686.2,3.73270184]
[1739938918774,2.47993335,2686.6,2686.3,0.06338666]
[1739938918957,2.47993335,2686.6,2686.4,0.7569]
[1739938919306,2.47993335,2686.6,2686.5,0.06321402]
[1739938920376,2.47993335,2686.9,2686.5,0.06321402]
[1739938923079,3.23163335,2687.2,2686.6,3.3820114]
[1739938923281,2.47993335,2687.2,2686.8,3.7287277]
[1739938923484,2.47993335,2687.2,2686.8,0.7287277]
[1739938923694,2.47993335,2687.2,2686.9,0.06343555]
[1739938923894,2.47993335,2687.2,2686.9,0.10064922]
[1739938924314,2.47993335,2687.2,2686.9,0.06343555]
[1739938924956,0.8311,2687.1,2686.9,0.06343555]
[1739938925387,0.85733517,2687.1,2686.9,0.06343555]
[1739938926212,0.8311,2687.1,2686.9,0.06343555]
[1739938926392,0.85733517,2687.1,2686.9,0.06343555]
[1739938927506,0.85733517,2687.1,2686.1,0.7569]
[1739938927507,0.8311,2687.0,2686.1,0.7569]
[1739938927667,2.47993335,2686.4,2686.0,5.631]
[1739938927864,2.47993335,2686.4,2686.0,5.36]
[1739938928392,2.50616852,2686.4,2686.1,3.0]
[1739938928596,2.50616852,2686.4,2686.2,0.75848943]
[1739938929771,2.47993335,2686.4,2686.2,0.75848943]
[1739938930419,2.50616852,2686.4,2686.2,0.75848943]
[1739938933221,2.83989537,2686.4,2685.9,0.1480973]
[1739938933428,2.47993335,2686.0,2685.9,0.1480973]
[1739938934365,2.50616852,2686.0,2685.9,0.1480973]
[1739938934572,2.47993335,2686.0,2685.9,0.1480973]
[1739938934889,2.47993335,2686.0,2685.9,0.21211544]
[1739938935224,2.83715186,2686.0,2685.9,0.21211544]
[1739938935667,2.81091669,2686.0,2685.9,0.21211544]
[1739938935845,2.47993335,2686.0,2685.9,0.21211544]
[1739938937059,2.50616852,2686.0,2685.9,0.21211544]
[1739938937854,2.47993335,2686.0,2685.9,0.21211544]
[1739938938506,2.50616852,2686.0,2685.9,0.21211544]
[1739938941860,3.30276852,2686.0,2685.9,0.21211544]
[1739938942073,3.63304537,2686.0,2685.9,0.21211544]
[1739938942400,3.6068102,2686.0,2685.9,0.1480973]
[1739938947314,5.31955608,2686.0,2685.9,0.1480973]
[1739938951237,4.19267923,2686.0,2685.9,0.21279369]
[1739938951447,4.2189144,2686.0,2685.9,0.1480973]
[1739938951656,4.19267923,2686.0,2685.9,0.1480973]
[1739938951958,4.2189144,2686.0,2685.9,0.1480973]
[1739938952526,5.0078144,2686.0,2685.9,0.1480973]
[1739938952725,5.50859584,2686.0,2685.9,0.1480973]
[1739938953826,5.48236067,2686.0,2685.9,0.1480973]
[1739938954339,3.76961479,2686.0,2685.9,0.21289311]
[1739938955772,3.76961479,2686.0,2685.9,0.1480973]
[1739938955773,3.79584996,2686.0,2685.9,0.1480973]
[1739938955928,3.79584996,2686.0,2685.9,0.21289311]
[1739938959654,2.47993335,2685.2,2685.1,0.75592726]
[1739938960104,2.47993335,2685.2,2685.1,0.81909994]
[1739938961109,2.47993335,2685.2,2685.1,0.06317268]
[1739938961607,2.47993335,2685.2,2685.1,0.06400299]
[1739938962111,2.8138102,2685.2,2685.1,0.06400299]
[1739938962504,2.8138102,2685.2,2684.5,0.7569]
[1739938962806,2.47993335,2684.7,2684.6,0.06466326]
[1739938964103,2.47993335,2685.0,2684.7,0.7569]
[1739938964406,2.47993335,2685.0,2684.8,0.06473033]
[1739938964708,2.47993335,2685.0,2684.7,0.7569]
[1739938964877,2.47993335,2685.0,2684.9,0.06464392]
[1739938965064,2.47993335,2685.0,2684.8,0.06473033]
[1739938965270,2.47993335,2685.0,2684.9,0.06464392]
[1739938965703,2.47993335,2685.0,2684.7,0.7569]
[1739938965909,2.47993335,2685.0,2684.9,0.06452102]
[1739938966502,2.47993335,2685.0,2684.7,1.20794346]
[1739938966668,2.47993335,2685.0,2684.9,0.06452102]
[1739938966864,2.47993335,2685.0,2684.8,0.06460743]
[1739938967113,2.47993335,2685.0,2684.9,0.06452102]
[1739938967511,2.47993335,2685.0,2684.7,1.20794346]
[1739938967669,2.47993335,2685.0,2684.9,0.0644625]
[1739938967869,2.47993335,2685.0,2684.8,0.06454892]
[1739938968189,2.47993335,2685.0,2684.7,1.20794346]
[1739938968514,2.47993335,2685.0,2684.8,0.56073184]
[1739938969921,2.47993335,2685.3,2685.0,0.7569]
[1739938970302,2.47993335,2685.3,2685.1,0.0643248]
[1739938972589,0.02623517,2685.2,2685.1,0.0643248]
[1739938972777,2.47993335,2685.3,2685.1,0.0643248]
[1739938973124,2.47993335,2685.3,2685.2,0.0642384]
[1739938973125,3.30933335,2685.3,2685.2,0.0642384]
[1739938973492,3.30933335,2685.3,2684.6,4.51043463]
[1739938973822,0.8294,2685.3,2684.6,4.51043463]
[1739938973977,0.8294,2685.3,2684.7,0.06459438]
[1739938974178,2.47993335,2685.0,2684.7,0.06459438]
[1739938975835,2.47993335,2685.0,2684.8,3.7569]
[1739938976030,2.47993335,2685.0,2684.8,0.7569]
[1739938976381,2.47993335,2685.0,2684.9,0.06460878]
[1739938978678,2.47993335,2685.0,2684.9,0.7569]
[1739938978935,2.47993335,2685.0,2684.9,0.82150878]
[1739938981421,2.47993335,2685.0,2684.9,0.06460878]
[1739938981737,2.47993335,2685.0,2684.7,0.7569]
[1739938981922,2.47993335,2685.0,2684.9,0.06460878]
[1739938982115,2.47993335,2685.0,2684.8,0.06469519]
[1739938982333,2.47993335,2685.0,2684.9,0.06460878]
[1739938982754,2.47993335,2685.0,2684.7,0.7569]
[1739938983054,2.47993335,2685.3,2685.0,0.7569]
[1739938983255,2.47993335,2685.3,2685.1,0.06443596]
[1739938983952,2.47993335,2685.3,2685.1,0.44656956]
[1739938984140,2.47993335,2685.6,2685.1,0.44656956]
[1739938984526,2.47993335,2685.6,2685.2,0.7569]
[1739938984857,2.47993335,2685.9,2685.3,0.0641754]
[1739938985259,2.47993335,2685.9,2685.6,3.0]
[1739938985571,2.47993335,2685.9,2685.7,0.0638299]
[1739938989355,0.8147,2685.8,2685.7,0.0638299]
[1739938989542,0.8147,2685.8,2685.5,0.75079257]
[1739938989872,2.47993335,2685.6,2685.5,0.75079257]
[1739938990057,2.47993335,2685.9,2685.5,0.75079257]
[1739938991027,2.47993335,2685.6,2685.5,0.75079257]
[1739938993697,2.47993335,2685.6,2685.1,3.0]
[1739938993698,2.80461669,2685.6,2685.1,3.0]
[1739938993999,2.47993335,2685.3,2685.1,3.0]
[1739938994199,2.47993335,2685.3,2684.9,0.7569]
[1739938994725,2.47993335,2685.3,2685.2,0.76040005]
[1739938995112,2.47993335,2685.3,2685.2,0.82446877]
[1739938997811,3.28403335,2685.3,2685.2,0.82446877]
[1739938998017,3.61243669,2685.3,2685.2,0.06406872]
[1739938998481,3.61243669,2685.3,2684.7,0.7569]
[1739938998652,3.28403335,2685.3,2684.7,0.7569]
[1739938998819,3.28403335,2685.3,2684.8,0.06212603]
[1739938999163,3.28403335,2685.3,2684.7,0.7569]
[1739938999343,2.47993335,2685.0,2684.9,0.06203961]
[1739938999548,2.47993335,2685.0,2684.8,0.06212603]
[1739938999744,2.47993335,2685.0,2684.9,0.06203961]
[1739939000151,2.7305502,2685.0,2684.5,3.0]
[1739939000348,2.47993335,2684.7,2684.2,5.36]
[1739939000667,2.47993335,2684.7,2684.3,3.0]
[1739939001661,2.47993335,2684.7,2684.6,0.74198824]
[1739939002621,2.47993335,2685.0,2684.6,1.49888824]
[1739939006228,2.47993335,2685.0,2684.6,0.74198824]
[1739939006536,2.47993335,2684.7,2684.6,0.74198824]
[1739939009154,3.24623335,2684.7,2684.6,0.74198824]
[1739939009944,3.24623335,2684.7,2684.6,0.80452084]
[1739939010146,3.24623335,2684.7,2684.6,0.0625326]
[1739939010147,3.26203335,2684.7,2684.6,0.0625326]
[1739939010512,0.7821,2684.6,2684.0,0.005]
[1739939010714,3.24063335,2684.1,2684.0,0.005]
[1739939011013,3.24063335,2684.1,2684.0,0.76656045]
[1739939012029,2.47993335,2684.1,2684.0,0.76656045]
[1739939012215,2.47993335,2684.5,2684.0,0.76656045]
[1739939013125,2.47993335,2684.8,2684.1,4.48245]
[1739939013324,2.47993335,2684.8,2684.1,1.28180105]
[1739939014159,0.84913517,2684.9,2684.0,7.49221045]
[1739939014160,2.47993335,2684.5,2684.0,3.005]
[1739939014335,2.47993335,2684.5,2684.4,0.74201884]
[1739939016633,2.47993335,2684.5,2684.0,3.005]
[1739939017766,3.23623335,2684.5,2684.0,3.005]
[1739939018316,2.47993335,2684.5,2684.0,3.005]
[1739939019464,2.47993335,2684.5,2684.3,0.75577137]
[1739939020857,0.24725623,2685.1,2684.3,1.51267137]
[1739939020858,2.47993335,2684.8,2684.3,1.51267137]
[1739939021158,0.02623517,2684.7,2684.3,1.51267137]
[1739939021657,2.47993335,2684.8,2684.3,0.75577137]
[1739939022435,2.47993335,2684.8,2684.5,3.0]
[1739939022627,2.47993335,2684.8,2684.4,3.7569]
[1739939023633,2.47993335,2685.1,2684.6,3.72485]
[1739939023841,2.47993335,2685.1,2684.5,6.72499]
[1739939023842,2.47993335,2685.1,2684.5,10.44998]
[1739939024209,2.47993335,2685.1,2684.7,3.0]
[1739939025102,0.1,2685.3,2684.9,3.0]
[1739939025248,0.1,2685.3,2685.0,0.8121514]
[1739939026476,0.1,2685.3,2685.1,3.72423]
[1739939026665,0.1,2685.3,2685.2,0.81922388]
[1739939027952,0.1,2685.3,2685.2,4.54333388]
[1739939028353,0.1,2685.3,2685.2,0.81922388]
[1739939029684,0.1,2685.3,2685.2,5.09333388]
[1739939029886,0.1,2685.3,2685.2,8.09333388]
[1739939030290,0.1,2685.3,2685.2,8.36333388]
[1739939030949,0.1,2685.3,2685.2,22.53333388]
[1739939036090,0.1,2685.3,2685.2,22.80707775]
[1739939037390,0.1,2685.3,2685.2,22.90707775]
[1739939037841,0.1,2685.3,2685.2,23.10707775]
[1739939041140,2.47993335,2686.7,2685.5,4.4806]
[1739939041322,3.24083335,2686.7,2686.2,3.72271]
[1739939041524,0.7609,2686.9,2686.5,3.72229]
[1739939041694,0.7609,2686.9,2686.6,0.05966037]
[1739939041894,0.7609,2686.9,2686.7,0.03721857]
[1739939042116,0.7609,2686.9,2686.8,0.05948778]
[1739939042398,0.7609,2686.9,2686.6,0.55]
[1739939042614,0.7609,2686.9,2686.8,0.05948778]
[1739939042812,0.7609,2686.9,2686.6,0.55]
[1739939042813,0.7609,2686.9,2686.7,0.05957407]
[1739939043215,0.7609,2686.9,2686.8,0.75180337]
[1739939043416,0.7609,2686.9,2686.7,0.05957407]
[1739939043417,3.24083335,2686.9,2686.7,0.05957407]
[1739939043651,3.56769772,2686.9,2686.8,0.05948778]
[1739939044155,3.56769772,2686.9,2686.8,0.05877559]
[1739939044359,3.56769772,2686.9,2686.8,0.05720041]
[1739939044942,0.7654,2686.8,2686.5,6.08948735]
[1739939045134,0.7654,2686.8,2686.6,0.05889193]
[1739939045330,1.12261977,2686.8,2686.6,0.05889193]
[1739939045650,0.813,2686.7,2686.6,0.05889193]
[1739939046629,0.813,2686.7,2686.2,0.76232697]
[1739939046848,3.29413335,2686.3,2686.2,0.76232697]
[1739939047071,3.29413335,2686.3,2685.8,5.36]
[1739939047538,2.47993335,2686.0,2685.9,0.74381737]
[1739939048068,3.25363335,2686.0,2685.9,0.74381737]
[1739939051971,3.25363335,2686.0,2685.9,0.80331358]
[1739939053056,3.25363335,2686.0,2685.9,0.05949621]
[1739939053425,3.25363335,2686.0,2685.4,5.36]
[1739939053671,0.7737,2686.0,2685.9,0.05949621]
[1739939053868,2.47993335,2685.8,2685.7,0.76342488]
[1739939054385,2.47993335,2685.8,2685.7,0.8230938]
[1739939054735,3.26743335,2685.8,2685.7,0.05966892]
[1739939055045,3.26743335,2685.8,2685.7,0.34804098]
[1739939055230,3.26743335,2685.8,2685.7,0.4077099]
[1739939056351,3.59417669,2685.8,2685.7,0.4077099]
[1739939056762,3.26743335,2685.8,2685.7,0.4077099]
[1739939058233,3.26743335,2685.8,2685.7,0.05966892]
[1739939059752,0.8151,2686.0,2685.7,0.05966892]
[1739939060442,3.29503335,2686.3,2685.7,0.05966892]
[1739939060636,3.29503335,2686.3,2685.7,0.58822911]
[1739939061289,2.47993335,2686.3,2685.8,0.79412786]
[1739939061685,2.47993335,2686.3,2685.9,0.06050037]
[1739939062383,3.29503335,2686.6,2685.9,9.14354037]
[1739939063329,3.29503335,2686.6,2686.0,0.34866456]
[1739939063625,3.29503335,2686.6,2686.5,0.76083952]
[1739939063820,2.47993335,2686.6,2686.5,0.76083952]
[1739939063973,2.47993335,2686.6,2686.5,0.82058252]
[1739939064175,2.47993335,2686.9,2686.5,0.82058252]
[1739939064889,2.47993335,2686.9,2686.6,0.7569]
[1739939065109,2.47993335,2686.9,2686.7,0.05957039]
[1739939065731,2.47993335,2686.9,2686.7,0.25216784]
[1739939065877,2.47993335,2687.2,2686.7,0.25216784]
[1739939066076,2.47993335,2687.2,2686.7,5.41957039]
[1739939066306,2.47993335,2686.9,2686.7,5.41957039]
[1739939066893,2.47993335,2686.9,2686.8,0.34866456]
[1739939067087,2.47993335,2686.9,2686.8,0.40793269]
[1739939067291,2.47993335,2687.2,2686.8,0.40793269]
[1739939067489,2.47993335,2687.2,2686.8,4.12970269]
[1739939067696,2.47993335,2687.2,2686.8,0.40793269]
[1739939068024,2.47993335,2687.2,2686.9,0.34866456]
[1739939068528,2.47993335,2687.2,2687.0,0.05909556]
[1739939069345,2.47993335,2687.5,2687.0,0.81599556]
[1739939070822,2.47993335,2687.5,2687.1,0.34866456]
[1739939071208,2.47993335,2687.5,2687.2,0.05794242]
[1739939073937,3.24193335,2687.8,2687.2,0.05794242]
[1739939074242,3.24193335,2687.8,2687.4,0.76391531]
[1739939074459,2.47993335,2687.5,2687.4,0.76391531]
[1739939077826,3.24193335,2687.8,2687.4,0.76391531]
[1739939078023,2.47993335,2687.8,2687.4,1.52081531]
[1739939081560,2.50616852,2687.8,2687.4,0.76391531]
[1739939082063,2.47993335,2687.8,2687.4,0.76391531]
[1739939082913,2.47993335,2687.5,2687.4,0.76391531]
[1739939084257,2.50616852,2687.5,2687.3,5.36]
[1739939084763,0.78463517,2687.4,2687.3,5.36]
[1739939085108,0.7584,2687.4,2687.2,0.76049768]
[1739939085730,0.78463517,2687.4,2687.2,0.76049768]
[1739939086668,0.7584,2687.4,2687.2,0.76049768]
[1739939087513,2.47993335,2687.5,2687.2,0.76049768]
[1739939088529,0.02623517,2687.4,2687.2,0.76049768]
[1739939088732,2.47993335,2687.5,2687.2,0.76049768]
[1739939088960,2.8113602,2687.5,2687.2,0.76049768]
[1739939089465,2.47993335,2687.5,2687.2,0.76049768]
[1739939090730,2.47993335,2687.5,2687.2,1.51739768]
[1739939092578,2.47993335,2687.5,2687.3,0.34848314]
[1739939093840,2.47993335,2687.9,2687.3,0.34848314]
[1739939094748,2.47993335,2687.9,2687.4,0.34848314]
[1739939094934,2.47993335,2687.9,2687.4,0.53507122]
[1739939095976,2.47993335,2687.9,2687.5,0.34848314]
[1739939096964,2.47993335,2687.9,2687.6,0.34848314]
[1739939097481,0.8115,2687.8,2687.6,0.34848314]
[1739939098282,0.02623517,2687.7,2687.2,1.51739768]
[1739939098466,2.47993335,2687.6,2687.3,0.68773977]
[1739939099807,2.47993335,2687.6,2687.4,0.05741521]
[1739939100015,2.47993335,2687.6,2687.4,0.40658633]
[1739939101572,2.47993335,2687.6,2687.5,0.34917112]
[1739939101776,2.50616852,2687.6,2687.5,0.40650008]
[1739939102275,2.47993335,2687.6,2687.5,0.40650008]
[1739939104110,2.47993335,2687.9,2687.5,0.40650008]
[1739939105374,2.47993335,2687.9,2687.6,0.34917112]
[1739939105614,2.47993335,2687.9,2687.7,0.05715648]
[1739939105786,0.02623517,2687.8,2687.7,0.05715648]
[1739939106020,0.79053517,2687.8,2687.7,0.05715648]
[1739939106718,0.79053517,2687.8,2687.7,0.4063276]
[1739939108018,0.79053517,2687.8,2687.7,0.05715648]
[1739939108189,0.7643,2687.8,2687.7,0.05715648]
[1739939108391,0.7643,2687.8,2687.2,1.51739768]
[1739939108589,2.47993335,2687.6,2687.3,0.77214123]
[1739939109717,2.47993335,2687.6,2687.4,0.34910323]
[1739939110076,2.47993335,2687.6,2687.5,0.05732896]
[1739939110905,2.47993335,2687.6,2687.5,0.40643219]
[1739939111620,6.29723335,2687.6,2687.5,0.40643219]
[1739939111930,6.9295802,2687.6,2687.5,0.40643219]
[1739939112107,6.9295802,2687.6,2687.5,0.34910323]
[1739939113625,3.0,2687.5,2687.1,0.75885045]
[1739939113776,2.47993335,2687.2,2687.1,0.75885045]
[1739939114124,2.47993335,2687.2,2687.1,0.8164778]
[1739939114833,2.47993335,2687.5,2687.1,1.5733778]
[1739939115637,5.47993335,2687.5,2687.1,1.92248103]
[1739939115839,2.47993335,2687.2,2687.1,1.92248103]
[1739939116917,2.47993335,2687.2,2687.1,2.11472913]
[1739939120178,0.7772,2687.8,2687.1,2.11472913]
[1739939120179,2.47993335,2687.5,2687.1,2.11472913]
[1739939120332,2.47993335,2687.5,2687.2,0.03720951]
[1739939120534,2.47993335,2687.5,2687.3,0.05746065]
[1739939120736,2.47993335,2687.5,2687.1,2.05710178]
[1739939120935,2.47993335,2687.5,2687.2,0.26325709]
[1739939121383,2.47993335,2687.5,2687.4,0.34910323]
[1739939121536,2.47993335,2687.5,2687.4,0.40647762]
[1739939124952,2.47993335,2687.8,2687.4,1.16337762]
[1739939126319,2.47993335,2687.8,2687.5,0.34910323]
[1739939126691,2.47993335,2687.8,2687.6,0.05714358]
[1739939128207,2.47993335,2687.8,2687.7,0.34910323]
[1739939128396,2.47993335,2687.8,2687.7,0.40597392]
[1739939128726,2.47993335,2687.8,2687.7,1.14819318]
[1739939133533,2.47993335,2687.8,2687.7,0.40597392]
[1739939133751,3.5092502,2687.8,2687.7,0.40597392]
[1739939135042,6.5092502,2687.8,2687.7,0.40597392]
[1739939135341,6.5092502,2687.8,2687.7,0.05687069]
[1739939135342,6.53548537,2687.8,2687.7,0.05687069]
[1739939135692,0.825,2687.7,2687.3,0.34910323]
[1739939135893,2.47993335,2687.4,2687.3,0.34910323]
[1739939144843,2.47993335,2687.4,2687.3,0.40640054]
[1739939145641,3.5262502,2687.4,2687.3,0.40640054]
[1739939145845,6.55248537,2687.4,2687.3,0.40640054]
[1739939146144,6.55248537,2687.4,2687.3,0.34910323]
[1739939147046,3.0,2687.3,2687.0,0.73712292]
[1739939147204,2.47993335,2687.1,2687.0,0.73712292]
[1739939148519,2.47993335,2687.1,2687.0,0.79467903]
[1739939148726,2.47993335,2687.1,2687.0,1.14352978]
[1739939151457,1.71274588,2687.6,2687.0,1.33357276]
[1739939151458,2.47993335,2687.4,2687.0,1.33357276]
[1739939151623,2.50616852,2687.4,2687.0,1.14352978]
[1739939153749,2.50616852,2687.4,2687.1,0.34885075]
[1739939154151,2.50616852,2687.4,2687.2,0.05764608]
[1739939154655,0.801,2687.3,2687.2,0.05764608]
[1739939155131,0.801,2687.3,2687.0,0.73712292]
[1739939155335,0.801,2687.3,2687.2,0.05764608]
[1739939155541,0.801,2687.3,2687.1,0.05773235]
[1739939155707,0.801,2687.3,2687.2,0.05764608]
[1739939155928,1.42909333,2687.3,2687.2,0.05764608]
[1739939156161,1.42909333,2687.3,2687.0,0.73712292]
[1739939156379,1.42909333,2687.3,2687.2,0.05764608]
[1739939156967,1.42909333,2687.3,2687.0,0.73712292]
[1739939156968,0.801,2687.3,2687.0,0.73712292]
[1739939157334,0.801,2687.3,2687.1,0.05773235]
[1739939158271,0.02623517,2687.2,2687.1,0.05773235]
[1739939158572,0.801,2687.3,2687.1,0.05773235]
[1739939159587,0.02623517,2687.2,2687.1,0.05773235]
[1739939160501,6.31136852,2687.2,2687.1,0.05773235]
[1739939160645,3.0,2687.1,2686.0,0.269]
[1739939161003,2.47993335,2686.8,2686.5,0.7495671]
[1739939162590,2.47993335,2686.8,2686.1,0.34905126]
[1739939162903,2.47993335,2686.3,2686.2,0.05863155]
[1739939163712,2.47993335,2686.3,2685.9,0.8284]
[1739939163873,2.47993335,2686.6,2686.2,0.79483885]
[1739939164062,2.47993335,2686.6,2686.3,0.8284]
[1739939164267,2.47993335,2686.6,2686.3,0.88694522]
[1739939165367,2.47993335,2686.9,2686.3,0.88694522]
[1739939165911,2.47993335,2686.9,2686.5,0.833]
[1739939166265,2.47993335,2686.9,2686.6,0.05849634]
[1739939168012,2.47993335,2687.2,2686.7,0.8327]
[1739939168179,2.47993335,2687.2,2686.8,0.05827122]
[1739939168372,2.47993335,2687.2,2686.7,0.8327]
[1739939168574,2.47993335,2687.2,2686.8,0.81580626]
[1739939169512,2.47993335,2686.9,2686.8,0.81580626]
[1739939170414,2.47993335,2687.2,2686.8,0.81580626]
[1739939170841,2.47993335,2687.2,2686.9,0.8327]
[1739939171169,2.47993335,2687.2,2687.0,0.05809282]
[1739939175300,0.8071,2687.1,2687.0,0.05809282]
[1739939175488,3.8071,2687.1,2687.0,0.05809282]
[1739939175687,0.8071,2687.0,2686.1,0.8121]
[1739939175926,2.47993335,2686.4,2686.1,0.8121]
[1739939176099,2.47993335,2686.4,2686.2,0.05864907]
[1739939176999,2.47993335,2686.4,2686.3,0.79577678]
[1739939180034,2.47993335,2686.4,2686.3,0.05856274]
[1739939180403,2.47993335,2686.4,2686.2,0.76228782]
[1739939180631,2.47993335,2686.4,2686.3,0.05856274]
[1739939180999,0.762,2686.3,2686.2,0.76228782]
[1739939182726,0.762,2686.3,2685.5,0.7796]
[1739939183220,2.47993335,2686.1,2685.5,0.7796]
[1739939184137,0.762,2686.3,2685.5,0.7796]
[1739939184138,0.762,2686.3,2685.6,3.0]
[1739939184339,2.47993335,2686.4,2686.0,0.7411859]
[1739939188208,3.30863335,2686.1,2686.0,0.7411859]
[1739939194751,2.47993335,2686.1,2686.0,0.7411859]
[1739939198906,0.7853,2686.3,2686.0,0.7411859]
[1739939199151,2.47993335,2686.4,2686.0,0.7411859]
[1739939199757,2.47993335,2686.4,2686.1,0.05996688]
[1739939202039,3.0,2686.3,2686.1,0.05996688]
[1739939202365,0.7846,2686.2,2686.1,0.05996688]
[1739939203235,7.50733,2686.2,2686.1,0.05996688]
[1739939204021,9.22007588,2686.2,2686.1,0.05996688]
[1739939204349,3.72286,2686.1,2686.0,0.7411859]
[1739939204647,7.86934594,2686.1,2686.0,0.7411859]
[1739939206223,10.86934594,2686.1,2686.0,0.7411859]
[1739939206422,9.20279335,2686.1,2686.0,0.7411859]
[1739939206625,3.72397,2685.4,2685.3,0.787]
[1739939206817,3.7237,2685.5,2685.3,0.787]
[1739939207759,3.72347,2685.7,2685.3,0.787]
[1739939208122,3.72329,2685.8,2685.3,1.5388359]
[1739939208475,3.72329,2685.8,2685.4,0.787]
[1739939208657,3.72344,2685.7,2685.4,0.787]
[1739939209239,3.72318,2685.9,2685.4,0.787]
[1739939209240,7.44642,2685.9,2685.4,0.787]
[1739939209438,3.72329,2685.8,2685.4,0.787]
[1739939209872,3.72285,2686.2,2685.6,4.48675]
[1739939210073,3.72285,2686.2,2685.7,0.7632]
[1739939210246,3.72278,2686.2,2685.7,0.7632]
[1739939210633,3.7229,2686.1,2685.7,0.7632]
[1739939210980,3.72302,2686.0,2685.7,1.211889]
[1739939211177,3.72321,2685.9,2685.7,0.7632]
[1739939212076,2.47993335,2686.2,2685.7,0.7632]
[1739939212077,3.72328,2685.8,2685.7,0.7632]
[1739939213226,3.72323,2685.9,2685.7,1.51234784]
[1739939213515,3.72309,2686.0,2685.7,1.51234784]
[1739939213869,3.72319,2685.9,2685.7,1.51234784]
[1739939214311,3.72309,2686.0,2685.7,1.51234784]
[1739939214607,7.44619,2686.0,2685.7,1.51234784]
[1739939215107,3.72309,2686.0,2685.7,1.51234784]
[1739939215509,3.72288,2686.1,2685.7,1.51234784]
[1739939215870,7.44612,2686.0,2685.7,1.51234784]
[1739939216297,3.723,2686.0,2685.7,1.51234784]
[1739939216773,3.72297,2686.1,2685.7,1.51234784]
[1739939216984,3.72297,2686.1,2685.7,1.27274062]
[1739939217184,3.72301,2686.0,2685.8,0.7632]
[1739939219908,3.72301,2686.0,2685.9,0.06012207]
[1739939220083,3.72289,2686.1,2685.9,0.06012207]
[1739939220414,3.72276,2686.2,2685.9,0.06012207]
[1739939222017,5.47993335,2686.5,2686.0,0.7641]
[1739939222018,2.47993335,2686.5,2686.0,0.7641]
[1739939222373,2.47993335,2686.5,2686.1,0.05976838]
[1739939223793,7.19267923,2686.8,2686.2,0.7641]
[1739939224176,7.19267923,2686.8,2686.3,0.05950816]
[1739939224638,7.19267923,2686.8,2686.4,0.7641]
[1739939224930,4.19267923,2686.8,2686.4,0.82349265]
[1739939225289,4.19267923,2686.8,2686.5,0.27934912]
[1739939225794,4.19267923,2686.8,2686.6,0.05922003]
[1739939226119,4.61194715,2686.8,2686.6,0.05922003]
[1739939226523,0.7684,2686.7,2686.6,0.75390839]
[1739939226713,0.7684,2686.7,2686.2,0.7613]
[1739939226910,2.47993335,2686.5,2686.2,0.7613]
[1739939227114,2.47993335,2686.5,2686.3,0.05947897]
[1739939227431,2.47993335,2686.5,2686.2,0.7613]
[1739939227802,2.47993335,2686.5,2686.3,0.05937391]
[1739939228122,2.47993335,2686.5,2686.4,0.27916964]
[1739939228333,2.47993335,2686.5,2686.4,1.03145848]
[1739939228634,2.47993335,2686.5,2686.4,1.09074607]
[1739939229516,4.19267923,2686.8,2686.4,1.09074607]
[1739939230234,3.0,2686.7,2686.4,1.09074607]
[1739939230831,3.0,2686.7,2686.5,0.27916964]
[1739939231286,3.71926792,2686.7,2686.6,0.05911497]
[1739939231489,3.0,2686.7,2686.6,0.05911497]
[1739939231644,3.0,2686.7,2686.5,0.27916964]
[1739939231844,0.7959,2686.6,2686.5,0.27916964]
[1739939232145,0.7959,2686.6,2686.5,0.33814909]
[1739939232585,5.50864588,2686.6,2686.5,0.27916964]
[1739939232794,7.30791714,2686.6,2686.5,0.27916964]
[1739939232939,6.85549714,2686.6,2686.5,0.27916964]